Cogmind - Beta 15 @@@ ROGUE MODE // 2025.05.09 @ 18:48:41 Player: Darcyisverycute Result: Destroyed by X-87 Electro with Compact HERF Cannon Performance ------------- Evolutions (7) 3500 Regions Visited (15) 3000 Robots Destroyed (70) 350 Value Destroyed (1989) 1989 Prototype IDs (58) 1160 Alien Tech Used (2) 400 Bonus (3379) 3379 TOTAL SCORE: 13778 Bonus ------- Delivered SUBCON Basin 2000 Registered with UFD 300 Met Optimus in HQ 500 Met Warlord at Base 500 MAIN.C Attacked Warlord 500 Friendly Fire -421 Cogmind --------- Core Integrity 0/1300 Matter 109/300 Energy 84/100 System Corruption 35% Temperature Cool (0) Movement Core (300) Ox5 Location -3/Armory Parts ------- > --- POWER (2) -------- (None) > --- PROPULSION (7) --- Advanced Medium Treads Cesium-ion Thruster > --- UTILITY (9) ------ Improved Signal Interpreter Makeshift ECM Suite > --- WEAPON (3) ------- Enhanced Force Lance > --- INVENTORY (5) ---- High-capacity Storage Unit Peak State ------------ > --- POWER ------------ Light Particle Reactor Micro Antimatter Reactor > --- PROPULSION ------- Gravmag Array Cooled Gravmag System Cooled Gravmag System Cooled Gravmag System Improved Antigrav System Improved Gyrokinetic Inverter > --- UTILITY ---------- High-capacity Storage Unit Long-range Sensor Array Improved Signal Interpreter Improved Medium Armor Plating Improved Hacking Suite Advanced Hacking Suite System Mapper Makeshift System Shield Tech Extrapolator > --- WEAPON ----------- Precision Phase Gun Vortex Rail Makeshift Sword > --- INVENTORY -------- Vortex Chain Reactor Improved Gyrokinetic Inverter Improved Gyrokinetic Inverter Advanced Power Amplifier Experimental Coolant Injector Experimental Optical Array Particle Accelerator Makeshift ECM Suite Advanced Reaction Control System Experimental Cloaking Device Graphene Brace A0-MCA's Component Scanner Dimensional Node Initializer Transdimensional Reconstructor Smartbomb Launcher CPS Tube DRS Beacon [Rating: 143] Favorites ----------- Power Neutrino Core Engine Ion Engine Power Core Neutrino Core Reactor Micro Antimatter Reactor Propulsion Antigrav System Treads Light Treads Wheel Subdweller Monowheel Hover Unit Antigrav System Flight Unit Nuclear Pulse Array Utility High-capacity Storage Unit Device Scrap Suit Storage High-capacity Storage Unit Processor Tech Extrapolator Hackware Makeshift Hacking Suite Protection Makeshift Light Armor Plating Weapon Beam Cannon Energy Gun Medium Laser Energy Cannon Beam Cannon Ballistic Gun Subdweller Machine Gun Ballistic Cannon Battle Cannon Launcher Grenade Launcher Special Weapon CPS Tube Slashing Weapon Makeshift Sword Piercing Weapon Makeshift Spear Special Melee Weapon Dirty Datajack Build | -11 -10 -10 -7 -7 -5 -5 -5 -5 -4 -4 -4 -4 -3 -3 -3 ------- Run | Yrd Mat Sub Rec Scr Fac Upp Upp Zhi Pro Fac Upp War Pro Res Arm Slots Evolved 14 | . . . . . 10 . . . . 2 . . . 2 . Power 1 | . . . . . 1 . . . . . . . . . . Propulsion 5 | . . . . . 4 . . . . . . . . 1 . Utility 7 | . . . . . 5 . . . . 2 . . . . . Weapon 1 | . . . . . . . . . . . . . . 1 . Parts Attached 126 | 7 2 19 1 8 39 . 3 4 1 10 1 10 1 16 4 Power 15 | 1 . 2 . 1 5 . 1 2 . . . 1 . 2 . Engine 6 | 1 . 2 . 1 1 . . 1 . . . . . . . Core 5 | . . . . . 4 . 1 . . . . . . . . Reactor 4 | . . . . . . . . 1 . . . 1 . 2 . Propulsion 39 | 2 . 3 1 3 15 . . 1 . 5 . 1 . 6 2 Treads 5 | 2 . 1 . . 1 . . . . . . . . . 1 Leg . | . . . . . . . . . . . . . . . . Wheel 7 | . . 2 1 3 1 . . . . . . . . . . Hover 25 | . . . . . 12 . . 1 . 5 . 1 . 6 . Flight 2 | . . . . . 1 . . . . . . . . . 1 Utility 46 | 2 1 8 . 2 14 . . 1 1 4 . 7 . 6 . Device 23 | 1 . 5 . 1 6 . . . 1 1 . 6 . 2 . Storage 5 | 1 1 . . 1 1 . . . . . . . . 1 . Processor 4 | . . . . . 3 . . . . . . . . 1 . Hackware 8 | . . . . . 3 . . . . 3 . 1 . 1 . Protection 6 | . . 3 . . 1 . . 1 . . . . . 1 . Artifact . | . . . . . . . . . . . . . . . . Weapon 26 | 2 1 6 . 2 5 . 2 . . 1 1 1 1 2 2 Energy Gun 4 | 1 . . . . . . . . . . . 1 1 1 . Energy Cannon 3 | . 1 . . . . . . . . 1 . . . . 1 Ballistic Gun 6 | 1 . 2 . . 3 . . . . . . . . . . Ballistic Cannon 2 | . . 1 . . 1 . . . . . . . . . . Launcher 4 | . . 1 . . 1 . 1 . . . . . . 1 . Special Weapon 3 | . . 1 . 1 . . . . . . 1 . . . . Impact Weapon . | . . . . . . . . . . . . . . . . Slashing Weapon 1 | . . . . 1 . . . . . . . . . . . Piercing Weapon 2 | . . 1 . . . . . . . . . . . . 1 Special Melee Weapon 1 | . . . . . . . 1 . . . . . . . . Unidentified Prototypes 13 | . . . . . . . . 4 . . . 7 . 2 . Corrupted Parts 1 | . . . . . . . . . . 1 . . . . . System Corruption 1 | . . . . . . . . . . 1 . . . . . Parts Lost 41 | . . 4 . . 11 1 . . . . 2 2 . 19 2 Power 7 | . . 1 . . 1 1 . . . . . 1 . 2 1 Propulsion 17 | . . 1 . . 5 . . . . . 1 . . 10 . Utility 10 | . . 1 . . 4 . . . . . . 1 . 4 . Weapon 7 | . . 1 . . 1 . . . . . 1 . . 3 1 Highest Loss Streak 17 | . . 1 . . 4 1 . . . . 2 2 . 17 2 To Critical Strikes 2 | . . . . . . . . . . . . . . 2 . Average Backups 13 | 4 8 12 4 17 15 14 19 18 19 17 17 17 16 13 4 Power 1 | . 1 . . 2 . 1 1 . 1 1 1 1 1 1 . Propulsion 1 | 1 1 . . 1 . . 1 1 3 1 1 1 2 1 . Utility 7 | . 3 5 1 10 8 8 12 10 9 8 9 8 8 7 2 Weapon 2 | 1 3 4 . 1 3 2 2 3 2 3 3 3 2 1 1 Tool/Special . | . . . . . . . . . . . . . . . . Unused Backups 50 | . 1 11 6 9 6 2 . 4 . 4 . 2 . 5 . Power 2 | . . . 1 1 . . . . . . . . . . . Propulsion 7 | . 1 1 1 2 1 . . . . . . . . 1 . Utility 27 | . . 6 2 3 5 . . 4 . 3 . 1 . 3 . Weapon 10 | . . 4 2 2 . . . . . 1 . 1 . . . Tool/Special 4 | . . . . 1 . 2 . . . . . . . 1 . Average Slot Usage (%) 86 | . 99 88 92 90 72 84 77 84 88 92 89 86 84 78 17 Engine 8 | . 14 9 14 14 4 . . 2 5 5 5 4 . . . Core 1 | . . . . . 3 9 4 5 5 5 5 4 5 . . Treads 7 | . 28 21 7 3 1 . . . . . . . . . 1 Wheel 7 | . . 1 20 22 4 . . . . . . . . . . Hover 9 | . . . . . 14 29 29 29 29 30 28 26 26 24 . Device 8 | . 14 9 . 7 10 11 11 8 10 13 9 9 15 10 . Storage 9 | . 14 12 7 13 5 5 5 5 5 5 5 5 5 3 . Processor 3 | . . . . . 6 11 11 11 11 10 10 10 10 8 5 Hackware 3 | . . . . . 7 5 5 5 5 11 15 15 15 16 3 Protection 3 | . . 4 14 . . . . 2 . . . 3 . . . Energy Cannon 5 | . 8 11 7 10 . . . . . . . . . . . Ballistic Gun 2 | . 14 3 7 . 1 . . . . . . . . . . Ballistic Cannon 2 | . . 7 . . . . . . . . . . . . . Launcher 1 | . . 1 7 . . 3 . . . . . . . . . Slashing Weapon 2 | . . . . 3 4 5 5 5 5 5 5 5 5 3 . Piercing Weapon 3 | . . 1 7 10 1 . . . . . . . . . 1 Peak Build Rating 143 | 10 10 61 61 48 89 88 85 96 94 112 112 124 123 143 38 Average Rating 51 | 5 9 17 54 20 66 84 80 89 92 106 107 111 115 121 21 On Entrance 66 | . 10 10 61 48 29 84 79 85 92 92 112 103 115 115 28 Naked Turns . | . . . . . . . . . . . . . . . . Heaviest Build 88 | 12 28 84 84 84 78 61 62 64 72 72 66 75 62 88 33 Greatest Support 78 | 40 40 40 40 28 66 62 62 64 64 67 67 65 65 78 30 Greatest Overweight (x) 18 | . . 3 5 18 3 1 . 1 1 1 1 1 . 1 1 Average Overweight (x) . | . . . 4 1 . . . . . . . . . . . Largest Inventory Capacity 20 | 8 15 15 15 20 20 20 20 20 20 20 20 20 20 20 5 Average Capacity 17 | 6 10 14 15 19 17 16 20 20 20 20 20 20 20 16 5 Most Carried 20 | 8 13 15 15 20 20 20 20 20 20 20 20 20 19 20 5 Average Carried 16 | 4 8 14 12 18 17 15 20 19 20 19 19 19 18 16 3 Final Capacity 20 | 8 15 15 15 20 15 20 20 20 20 20 20 20 20 5 5 Final Carried 20 | 8 13 15 15 20 14 20 20 20 20 20 20 19 19 5 1 Class Distribution -------------------- 47% | Mutant 16% | Derelict-Mutant 16% | Hacker-Mutant 13% | Scavenger-Tank 3% | Tank Dominant Class ---------------- Mutant | -10/Materials Mutant | -10/Subcaves Scavenger-Tank | -7/Recycling Mutant | -7/Scraptown Hacker-Mutant | -5/Factory Mutant | -5/Upper Caves Mutant | -5/Upper Caves Derelict-Mutant | -5/Zhirov Derelict-Mutant | -4/Proximity Caves Derelict-Scout | -4/Factory Hacker-Mutant | -4/Upper Caves Hacker-Mutant | -4/Warlord Hacker-Mutant | -3/Proximity Caves Hacker-Mutant | -3/Research Hacker-Mutant | -3/Armory Resources | -11 -10 -10 -7 -7 -5 -5 -5 -5 -4 -4 -4 -4 -3 -3 -3 ----------- Run | Yrd Mat Sub Rec Scr Fac Upp Upp Zhi Pro Fac Upp War Pro Res Arm Matter Collected 2423 | 292 34 426 94 30 615 159 81 56 108 123 91 234 10 70 . Remotely . | . . . . . . . . . . . . . . . . Salvage Created 3825 | 172 191 407 1090 . 844 137 139 417 135 123 26 . . 144 . Parts 163 | 16 13 34 34 . 36 3 4 . 8 5 . . . 10 . Haulers Intercepted . | . . . . . . . . . . . . . . . . Recyclers Shooed 1 | . . . . . 1 . . . . . . . . . . Parts Field Recycled . | . . . . . . . . . . . . . . . . Retrieved Matter . | . . . . . . . . . . . . . . . . Parts Self-Destructed 15 | . . 12 . . . . . . 3 . . . . . . Prevented 4 | . . . . . . 4 . . . . . . . . . Kills | -11 -10 -10 -7 -7 -5 -5 -5 -5 -4 -4 -4 -4 -3 -3 -3 ------- Run | Yrd Mat Sub Rec Scr Fac Upp Upp Zhi Pro Fac Upp War Pro Res Arm Combat Hostiles Destroyed 39 | . 3 13 3 . 10 2 . . 5 . . . . 3 . Melee 12 | . . . 3 . 8 . . . 1 . . . . . . Guns 3 | . . . . . 2 . . . . . . . . 1 . Cannons 13 | . 3 10 . . . . . . . . . . . . . AOE 10 | . . 2 . . . 2 . . 4 . . . . 2 . Classes Destroyed 14 | 3 3 4 . . 2 . 1 . . . . . . 1 . Worker 4 | 2 1 . . . 1 . . . . . . . . . . Builder 3 | . 1 . 1 . . . . . . . . . . 1 . Tunneler 5 | 3 1 . . . 1 . . . . . . . . . . Recycler 13 | 1 . . 9 . 2 . . . . 1 . . . . . Mechanic 2 | . . . . . 2 . . . . . . . . . . Operator 2 | . 1 . . . 1 . . . . . . . . . . Turret 2 | . . 2 . . . . . . . . . . . . . Swarmer 12 | . . 3 . . 4 . . . 5 . . . . . . Grunt 5 | . 3 . . . . 2 . . . . . . . . . Sentry 6 | . . 1 3 . 2 . . . . . . . . . . Hunter 2 | . . . . . . . . . . . . . . 2 . Programmer 5 | . . . . . 4 . . . . . . . . 1 . Subdweller 9 | . . 9 . . . . . . . . . . . . . Decomposer 3 | . . . . . . . 2 . . . 1 . . . . Samaritan 1 | . . . . . . . 1 . . . . . . . . Best Kill Streak 9 | 3 3 3 9 . 4 1 . . 5 1 . . . 3 . Combat Bots Only 5 | . 2 3 2 . 4 1 . . 5 . . . . 2 . Max Kills in Single Turn 2 | 2 1 2 1 . 1 1 1 . 2 1 1 . . 1 . Gunslinging . | . . . . . . . . . . . . . . . . Exploded 2 | . . 2 . . . 1 . . 2 . . . . 1 . Melee 1 | . . . 1 . 1 . . . 1 . . . . . . Uniques/NPCs Destroyed . | . . . . . . . . . . . . . . . . Combat | -11 -10 -10 -7 -7 -5 -5 -5 -5 -4 -4 -4 -4 -3 -3 -3 -------- Run | Yrd Mat Sub Rec Scr Fac Upp Upp Zhi Pro Fac Upp War Pro Res Arm Hostile Shots Fired 572 | . 10 77 45 . 130 5 12 . 13 6 9 41 . 211 13 Missed 187 | . 1 27 15 . 39 1 6 . 4 1 4 21 . 66 2 Hits 385 | . 9 50 30 . 91 4 6 . 9 5 5 20 . 145 11 Melee 1 | . . . . . . . . . . . . . . . 1 Projectile 384 | . 9 50 30 . 91 4 6 . 9 5 5 20 . 145 10 Critical Strikes 24 | . . 1 . . 6 . . . . . . 1 . 16 . Part Disruptions 5 | . . . . . 2 . . . . . . . . 2 1 Damage Taken 7543 | . 95 704 211 . 1791 287 103 . 175 78 128 518 . 3099 354 Core 1875 | . 10 77 5 . 291 25 36 . 17 10 20 99 . 1111 174 Absorbed by Shields . | . . . . . . . . . . . . . . . . Redirected to Shielding 152 | . . . . . . . . . . . . 152 . . . Regen/Repaired (Parts) 452 | . . . . 168 131 6 . . . 62 . . . 85 . Core Remaining (%) 78 | 100 . . . 63 . . . . 63 . . . 88 . . Volleys Fired 128 | 12 14 58 . . 13 10 1 . 2 1 . 5 1 11 . Largest 2 | 2 2 2 . . 2 1 1 . 1 1 . 1 1 2 . Hottest 139 | 70 80 100 . . 74 46 39 . 46 105 . 105 45 139 . Shots Fired 199 | 24 28 93 . . 21 10 1 . 2 1 . 5 1 13 . Gun 71 | 24 17 5 . . 17 . . . . . . . 1 7 . Cannon 86 | . 11 69 . . 4 . . . . 1 . 1 . . . Launcher 31 | . . 10 . . . 10 1 . 2 . . 4 . 4 . Special 11 | . . 9 . . . . . . . . . . . 2 . Kinetic 85 | 12 14 38 . . 21 . . . . . . . . . . Thermal 78 | 12 14 45 . . . . . . . 1 . 1 . 5 . Explosive 15 | . . 10 . . . . 1 . . . . . . 4 . Electromagnetic 16 | . . . . . . 10 . . 2 . . 4 . . . Entropic 3 | . . . . . . . . . . . . . 1 2 . Robot Hit Streak 23 | 7 10 23 . . 17 3 . . . . . 1 . 5 . Robot Miss Streak 5 | 1 2 2 . . 5 1 . . . . . 3 . 1 . Penetration Max . | . . . . . . . . . . . . . . . . Secondary Targets . | . . . . . . . . . . . . . . . . Capacitor 2 | . . . . . . . . . . . . . . 2 . Shots Hit Robots 198 | 15 20 46 21 . 67 1 4 8 2 2 1 1 . 9 1 Core Hits 118 | 9 12 21 16 . 23 8 2 4 6 1 . 7 . 9 . Critical Kills 1 | . . 1 . . . . . . . . . . . . . Critical Parts Destroyed . | . . . . . . . . . . . . . . . . Critical Strikes 17 | 1 1 3 4 . 7 . . . . 1 . . . . . Burn 2 | 1 1 . . . . . . . . . . . . . . Meltdown 1 | . . 1 . . . . . . . . . . . . . Blast 2 | . . 2 . . . . . . . . . . . . . Sever 6 | . . . . . 5 . . . . 1 . . . . . Impale 6 | . . . 4 . 2 . . . . . . . . . . Melee Attacks 204 | . . 1 24 . 95 4 9 8 9 27 6 2 6 10 3 Impact . | . . . . . . . . . . . . . . . . Slashing 156 | . . . . . 75 4 9 8 9 27 6 2 6 10 . Piercing 48 | . . 1 24 . 20 . . . . . . . . . 3 Sneak Attacks 26 | . . . 12 . 9 . 3 . . 1 1 . . . . Combat Hostiles 1 | . . . 1 . . . . . . . . . . . . Follow-up Attacks 5 | . . . . . 5 . . . . . . . . . . Damage Inflicted 8029 | 185 262 1098 949 . 2455 401 302 585 336 121 75 486 . 722 52 Guns 770 | 185 104 27 . . 247 . . . . . . . . 207 . Cannons 1044 | . 158 792 . . 94 . . . . . . . . . . Explosions 1750 | . . 279 . . . 401 . . 264 . . 486 . 320 . Melee 4307 | . . . 949 . 2114 . 302 585 72 121 75 . . 37 52 Ramming 158 | . . . . . . . . . . . . . . 158 . Kinetic 899 | 59 79 420 . . 341 . . . . . . . . . . Thermal 972 | 126 183 399 . . . 25 . . 112 . . . . 127 . Explosive 599 | . . 279 . . . . . . . . . . . 320 . Electromagnetic 1014 | . . . . . . 376 . . 152 . . 486 . . . Impact . | . . . . . . . . . . . . . . . . Slashing 2965 | . . . . . 1773 . 302 585 72 121 75 . . 37 . Piercing 1342 | . . . 949 . 341 . . . . . . . . . 52 Entropic 80 | . . . . . . . . . . . . . . 80 . Highest Corruption 35 | . . . . . 18 20 20 20 21 1 1 1 . 30 35 Average Corruption 13 | . . . . . 11 18 20 20 20 1 1 1 . 17 30 Corruption Purged . | . . . . . . . . . . . . . . . . Corruption Blocked . | . . . . . . . . . . . . . . . . Effects 109 | . . . . . 28 17 13 6 35 2 1 . . 5 2 Message Errors 27 | . . . . . 5 7 2 1 11 . . . . 1 . Matter Fused 27 | . . . . . 11 3 4 1 6 . 1 . . . 1 Heat Flow Errors 16 | . . . . . 6 1 3 1 3 1 . . . 1 . Energy Discharges 11 | . . . . . 2 . 1 . 7 . . . . 1 . Parts Rejected 1 | . . . . . . . . . . . . . . 1 . Parts Fused 1 | . . . . . . . 1 . . . . . . . . Data Loss (minor) 17 | . . . . . 4 3 1 3 5 1 . . . . . Data Loss (major) 3 | . . . . . . 2 . . 1 . . . . . . Alerts 2 | . . . . . . . 1 . 1 . . . . . . Misdirections 4 | . . . . . . 1 . . 1 . . . . 1 1 Overload Shots . | . . . . . . . . . . . . . . . . Overflow Damage 764 | . . 43 80 . 237 13 137 172 10 . 59 3 . 10 . Projectiles 10 | . . 10 . . . . . . . . . . . . . Explosions 49 | . . 33 . . . 13 . . . . . 3 . . . Melee 705 | . . . 80 . 237 . 137 172 10 . 59 . . 10 . Knockbacks 6 | . . 3 . . 2 . . . . . . . . 1 . Impact 1 | . . . . . . . . . . . . . . 1 . Kinetic 5 | . . 3 . . 2 . . . . . . . . . . Secondary . | . . . . . . . . . . . . . . . . Self-Inflicted Damage 304 | . . 24 . . . 121 . . 40 . . 45 . 74 . Shots 10 | . . 1 . . . 4 . . 3 . . 2 . . . Rammed 24 | . . . . . . . . . . . . . . 24 . Targets Rammed 24 | . . . . . . . . . . . . . . 24 . Kicked . | . . . . . . . . . . . . . . . . Crushed . | . . . . . . . . . . . . . . . . Highest Temperature 312 | 80 124 5 5 . 242 312 301 151 199 226 . 14 . 149 . Average Temperature 54 | 32 47 5 5 . 44 75 42 57 90 101 . 10 . 49 . Received Heat Transfer 525 | . 54 171 54 . 72 18 . . . . 18 99 . 39 . Effects 3 | . . . . . . . 3 . . . . . . . . Interference 3 | . . . . . . . 3 . . . . . . . . Siege Activations . | . . . . . . . . . . . . . . . . Martial Activations . | . . . . . . . . . . . . . . . . Shielding Activations . | . . . . . . . . . . . . . . . . Robots Disrupted . | . . . . . . . . . . . . . . . . Combat Hostiles . | . . . . . . . . . . . . . . . . Robots Corrupted . | . . . . . . . . . . . . . . . . Combat Hostiles . | . . . . . . . . . . . . . . . . Parts Fried 2 | . . . . . . 1 . . 1 . . . . . . Impact Corruptions 2 | . . . . . . . . . . . . . . 2 . Robots Melted 1 | . . 1 . . . . . . . . . . . . . Combat Hostiles 1 | . . 1 . . . . . . . . . . . . . Parts Melted 4 | . 2 1 . . . . . . . . . . . 1 . Heat Transferred 2124 | 444 481 851 . . . 100 . . 100 . . . . 148 . Parts Sabotaged 3 | . . . . . . . . . . . . . . . 3 Parts Stolen . | . . . . . . . . . . . . . . . . Parts Stripped . | . . . . . . . . . . . . . . . . Power Chain Reactions 2 | . . . . . . 1 . . 1 . . . . . . Alert | -11 -10 -10 -7 -7 -5 -5 -5 -5 -4 -4 -4 -4 -3 -3 -3 ------- Run | Yrd Mat Sub Rec Scr Fac Upp Upp Zhi Pro Fac Upp War Pro Res Arm Maximum Alert Level 2 | . . . . . 1 . . . . . . . . 2 . Low Security (%) 86 | 100 100 . 100 . 84 . . . . 100 . . . 12 100 Level 1 7 | . . . . . 15 . . . . . . . . 28 . Level 2 5 | . . . . . . . . . . . . . . 59 . Level 3 . | . . . . . . . . . . . . . . . . Level 4 . | . . . . . . . . . . . . . . . . Level 5 . | . . . . . . . . . . . . . . . . High Security . | . . . . . . . . . . . . . . . . Max Security . | . . . . . . . . . . . . . . . . Peak Influence 450 | 10 30 . 69 . 221 . . . . 61 . . . 450 58 Initial 450 | . . . 69 . . . . . . 49 . . . 450 58 Average 73 | 1 8 . 9 . 112 . . . . 14 . . . 348 50 Influence Increases 2421 | 30 123 300 141 . 651 100 35 15 110 124 120 15 . 657 . Destroy 0b10 Robot/C 640 | . 60 120 60 . 200 40 . . 100 . . . . 60 . Destroy 0b10 Robot/NC 175 | 30 20 . 60 . 35 . 5 15 . 5 . . . 5 . Destroy Leader 90 | . 10 . . . 50 . . . 10 . . . . 20 . Successful Hack 179 | . 18 . 21 . 56 . . . . 54 . . . 30 . Disable Machine 30 | . . . . . 30 . . . . . . . . . . Destroy Structure 152 | . . . . . 40 . . . . 50 . . . 62 . Advance Influence 450 | . . . . . . . . . . . . . . 450 . Partial Spotted 30 | . . . . . . . . . . 15 . . . 15 . Lose Combat Pursuer 675 | . 15 180 . . 240 60 30 . . . 120 15 . 15 . Influence Decreases 2403 | 30 108 169 287 . 518 220 43 20 32 197 115 10 15 546 93 Entered New Map 254 | . . 8 77 . . 50 4 5 . 29 3 10 15 . 53 Time Decay 1619 | 30 108 141 210 . 408 160 39 15 32 158 92 . . 206 20 Search Patrol Dispatched 150 | . . . . . . . . . . . . . . 150 . Lost Part 370 | . . 20 . . 110 10 . . . . 20 . . 190 20 Lost Ally 10 | . . . . . . . . . . 10 . . . . . Squads Dispatched 23 | . 1 . . . 9 . . . . 7 . . . 6 . Investigation 12 | . . . . . 2 . . . . 6 . . . 4 . Extermination 6 | . . . . . 4 . . . . 1 . . . 1 . Reinforcement 5 | . 1 . . . 3 . . . . . . . . 1 . Assault . | . . . . . . . . . . . . . . . . Garrison . | . . . . . . . . . . . . . . . . Intercept . | . . . . . . . . . . . . . . . . Searches Triggered 1 | . . . . . . . . . . . . . . 1 . Construction Impeded . | . . . . . . . . . . . . . . . . Haulers Reinforced . | . . . . . . . . . . . . . . . . Active Scanning Responses . | . . . . . . . . . . . . . . . . Cargo Convoy Interrupts . | . . . . . . . . . . . . . . . . Stealth | -11 -10 -10 -7 -7 -5 -5 -5 -5 -4 -4 -4 -4 -3 -3 -3 --------- Run | Yrd Mat Sub Rec Scr Fac Upp Upp Zhi Pro Fac Upp War Pro Res Arm Distress Signals 2 | . 1 . . . . . . . . 1 . . . . . Communications Jammed . | . . . . . . . . . . . . . . . . Distress Signals . | . . . . . . . . . . . . . . . . Times Spotted 164 | . 4 18 5 . 29 7 2 . 7 4 8 47 3 27 3 Peak Tracking Total 19 | . 2 5 2 . 11 5 2 . 5 2 7 19 2 17 3 Tactical Retreats 19 | . 1 3 . . 5 1 1 . . . 4 1 . 3 . Traps | -11 -10 -10 -7 -7 -5 -5 -5 -5 -4 -4 -4 -4 -3 -3 -3 ------- Run | Yrd Mat Sub Rec Scr Fac Upp Upp Zhi Pro Fac Upp War Pro Res Arm Traps Triggered 5 | . . . . . 3 1 . . . . . . . 1 . Indirectly . | . . . . . . . . . . . . . . . . Trap Hack Attempts . | . . . . . . . . . . . . . . . . Triggered . | . . . . . . . . . . . . . . . . Disarmed . | . . . . . . . . . . . . . . . . Reprogrammed . | . . . . . . . . . . . . . . . . Reused . | . . . . . . . . . . . . . . . . Traps Extracted . | . . . . . . . . . . . . . . . . Installed . | . . . . . . . . . . . . . . . . Triggered . | . . . . . . . . . . . . . . . . Most Traps Carried 1 | . . . . 1 1 1 1 1 . . . . . . . Machines | -11 -10 -10 -7 -7 -5 -5 -5 -5 -4 -4 -4 -4 -3 -3 -3 ---------- Run | Yrd Mat Sub Rec Scr Fac Upp Upp Zhi Pro Fac Upp War Pro Res Arm Machines Disabled 9 | . . 5 . . 2 1 . . . . . 1 . . . Max in Single Turn 2 | . . 2 . . 1 1 . . . . . 1 . . . Garrison Access 1 | . . . . . . . . . . . . . . 1 . Machines Repaired . | . . . . . . . . . . . . . . . . Machines Dismantled . | . . . . . . . . . . . . . . . . Machines Sabotaged . | . . . . . . . . . . . . . . . . Overloaded Fab Kills . | . . . . . . . . . . . . . . . . Hacking | -11 -10 -10 -7 -7 -5 -5 -5 -5 -4 -4 -4 -4 -3 -3 -3 --------- Run | Yrd Mat Sub Rec Scr Fac Upp Upp Zhi Pro Fac Upp War Pro Res Arm Machines Accessed 62 | . 3 4 8 2 9 1 . 4 . 12 . 10 . 8 1 Terminals 21 | . 3 . 5 . 5 . . . . 4 . . . 3 1 Fabricators 1 | . . . . . . . . . . 1 . . . . . Repair Stations 5 | . . . . . 3 . . . . 1 . . . 1 . Recycling Units 10 | . . . 3 . 1 . . . . 4 . . . 2 . Scanalyzers 2 | . . . . . . . . . . 1 . . . 1 . Garrison Access 2 | . . . . . . . . . . 1 . . . 1 . Total Hacks 149 | . 11 4 17 4 24 1 . 17 . 32 . 20 . 17 2 Successful 104 | . 6 4 6 4 14 1 . 17 . 21 . 20 . 10 1 Failed 45 | . 5 . 11 . 10 . . . . 11 . . . 7 1 Catastrophic 11 | . 1 . 4 . 3 . . . . 2 . . . 1 . Database Lockouts . | . . . . . . . . . . . . . . . . Manual 48 | . 8 . 10 . 10 . . . . 15 . 1 . 4 . Terminals 63 | . 11 . 11 . 17 . . . . 14 . . . 8 2 Fabricators 2 | . . . . . . . . . . 2 . . . . . Repair Stations 11 | . . . . . 6 . . . . 3 . . . 2 . Recycling Units 14 | . . . 6 . 1 . . . . 5 . . . 2 . Scanalyzers 8 | . . . . . . . . . . 4 . . . 4 . Garrison Access 5 | . . . . . . . . . . 4 . . . 1 . Terminal Hacks 66 | . 5 4 . 4 6 1 . 17 . 4 . 20 . 4 1 Record 18 | . . 1 . 3 . 1 . 5 . . . 7 . 1 . Part Schematic 7 | . 3 . . . . . . 4 . . . . . . . Robot Analysis 6 | . . . . . . . . 4 . 2 . . . . . Prototype ID Bank 16 | . . . . . 1 . . 4 . . . 11 . . . Open Door 3 | . . 1 . . . . . . . . . 2 . . . Branch Access Points 2 | . . . . . 1 . . . . 1 . . . . . Emergency Access Points 1 | . . . . . . . . . . 1 . . . . . Machine Index 1 | . . . . . . . . . . . . . . 1 . Terminal Index 1 | . 1 . . . . . . . . . . . . . . Alert Level 3 | . 1 . . . 1 . . . . . . . . . 1 Patrol Status 1 | . . . . . 1 . . . . . . . . . . Recall Investigation 1 | . . . . . . . . . . . . . . 1 . Recall Extermination 1 | . . . . . 1 . . . . . . . . . . Recall Reinforcements 1 | . . . . . . . . . . . . . . 1 . Zone Layout 1 | . . . . . 1 . . . . . . . . . . Proto ID Catalog 2 | . . 1 . 1 . . . . . . . . . . . Release Object 1 | . . 1 . . . . . . . . . . . . . Fabricator Hacks 2 | . . . . . . . . . . 2 . . . . . Load Schematic 1 | . . . . . . . . . . 1 . . . . . Build 1 | . . . . . . . . . . 1 . . . . . Repair Station Hacks 10 | . . . . . 5 . . . . 3 . . . 2 . Scan Component 6 | . . . . . 3 . . . . 2 . . . 1 . Repair 3 | . . . . . 1 . . . . 1 . . . 1 . Refit 1 | . . . . . 1 . . . . . . . . . . Recycling Unit Hacks 1 | . . . 1 . . . . . . . . . . . . Retrieve Components 1 | . . . 1 . . . . . . . . . . . . Scanalyzer 5 | . . . . . . . . . . 4 . . . 1 . Insert Component 3 | . . . . . . . . . . 2 . . . 1 . Analyze 2 | . . . . . . . . . . 2 . . . . . Garrison Access Hacks 1 | . . . . . . . . . . . . . . 1 . Seal Access 1 | . . . . . . . . . . . . . . 1 . Unauthorized Hacks 19 | . 1 . 5 . 3 . . . . 8 . . . 2 . Terminals 9 | . 1 . 2 . 2 . . . . 4 . . . . . Assimilate 2 | . . . . . . . . . . 2 . . . . . Botnet 7 | . 1 . 2 . 2 . . . . 2 . . . . . Fabricators . | . . . . . . . . . . . . . . . . Repair Stations 7 | . . . . . 1 . . . . 4 . . . 2 . Recycling Units 3 | . . . 3 . . . . . . . . . . . . Reject 1 | . . . 1 . . . . . . . . . . . . Mask 2 | . . . 2 . . . . . . . . . . . . Fedlink 7 | . . . . . 1 . . . . 4 . . . 2 . Scanalyzers . | . . . . . . . . . . . . . . . . Garrison Access . | . . . . . . . . . . . . . . . . Data Cores Recovered . | . . . . . . . . . . . . . . . . Used . | . . . . . . . . . . . . . . . . Hacking Detections 31 | . 3 . 7 . 8 . . . . 8 . . . 4 1 Full Trace Events 6 | . . . 2 . 1 . . . . 2 . . . 1 . Feedback Events . | . . . . . . . . . . . . . . . . Feedback Blocked . | . . . . . . . . . . . . . . . . Robot Schematics Acquired . | . . . . . . . . . . . . . . . . Robots Built . | . . . . . . . . . . . . . . . . Authchips . | . . . . . . . . . . . . . . . . Time . | . . . . . . . . . . . . . . . . Total Robot Build Rating . | . . . . . . . . . . . . . . . . Part Schematics Acquired 38 | . 3 . . . 12 2 . 6 1 4 4 6 . . . Parts Built 1 | . . . . . . . . . . 1 . . . . . Authchips 1 | . . . . . . . . . . 1 . . . . . Time 84 | . . . . . . . . . . 84 . . . . . Total Part Build Rating 4 | . . . . . . . . . . 4 . . . . . Parts Repaired 3 | . . . . . 1 . . . . 1 . . . 1 . Time 139 | . . . . . 70 . . . . 25 . . . 44 . Parts Recycled . | . . . . . . . . . . . . . . . . Recycled Matter . | . . . . . . . . . . . . . . . . Retrieved Matter . | . . . . . . . . . . . . . . . . Retrieved Components 3 | . . . 3 . . . . . . . . . . . . Parts Scanalyzed 2 | . . . . . . . . . . 1 . . . 1 . Part Schematics Acquired 1 | . . . . . . . . . . 1 . . . . . Parts Damaged . | . . . . . . . . . . . . . . . . Bothacking | -11 -10 -10 -7 -7 -5 -5 -5 -5 -4 -4 -4 -4 -3 -3 -3 ------------ Run | Yrd Mat Sub Rec Scr Fac Upp Upp Zhi Pro Fac Upp War Pro Res Arm Used RIF Installer . | . . . . . . . . . . . . . . . . Robots Hacked . | . . . . . . . . . . . . . . . . Non-combat . | . . . . . . . . . . . . . . . . Combat . | . . . . . . . . . . . . . . . . Robot Hacks Applied . | . . . . . . . . . . . . . . . . Relay Couplers Released . | . . . . . . . . . . . . . . . . Fabnet Peak Effective % . | . . . . . . . . . . . . . . . . Robots Rewired . | . . . . . . . . . . . . . . . . Allies Hacked . | . . . . . . . . . . . . . . . . Hacks Repelled . | . . . . . . . . . . . . . . . . Allies | -11 -10 -10 -7 -7 -5 -5 -5 -5 -4 -4 -4 -4 -3 -3 -3 -------- Run | Yrd Mat Sub Rec Scr Fac Upp Upp Zhi Pro Fac Upp War Pro Res Arm Total Allies 1 | . . . . . . . . . . 1 . . . . . Largest Group 1 | . . . . . . . . . . 1 . . . . . Highest-Rated Group 26 | . . . . . . . . . . 26 . . . . . Highest-Rated Ally 26 | . . . . . . . . . . 26 . . . . . Total Orders 1 | . . . . . . . . . . 1 . . . . . STAY 1 | . . . . . . . . . . 1 . . . . . Ally Attacks . | . . . . . . . . . . . . . . . . Total Damage . | . . . . . . . . . . . . . . . . Kills . | . . . . . . . . . . . . . . . . Allies Corrupted . | . . . . . . . . . . . . . . . . Allies Melted . | . . . . . . . . . . . . . . . . Intel | -11 -10 -10 -7 -7 -5 -5 -5 -5 -4 -4 -4 -4 -3 -3 -3 ------- Run | Yrd Mat Sub Rec Scr Fac Upp Upp Zhi Pro Fac Upp War Pro Res Arm Active Infowar (turns) 6781 | 34 370 2027 . . 931 322 301 64 746 489 346 605 191 344 11 Sensors 3869 | . . . . . 678 322 301 64 545 488 346 601 191 333 . Terrain 2321 | 34 370 1411 . . . . . . 201 305 . . . . . Structural 307 | . . 307 . . . . . . . . . . . . . Seismic 562 | . . 309 . . 253 . . . . . . . . . . Cloaking 72 | . . . . . . . . . . . . 11 35 26 . ECM 135 | . . . . . . . . . . . . . . 124 11 Robot Analysis Total 6 | . . . . . . . . 4 . 2 . . . . . Derelict Logs Recovered 9 | . . 3 . 2 . 1 . . 1 . 2 . . . . Drone Launches . | . . . . . . . . . . . . . . . . Drone Recoveries . | . . . . . . . . . . . . . . . . Exploration | -11 -10 -10 -7 -7 -5 -5 -5 -5 -4 -4 -4 -4 -3 -3 -3 ------------- Run | Yrd Mat Sub Rec Scr Fac Upp Upp Zhi Pro Fac Upp War Pro Res Arm Turns Passed 12621 | 193 370 3238 1513 2326 1278 322 316 144 765 495 366 637 191 423 44 Spaces Moved 10724 | 88 191 1546 753 1823 1185 390 404 245 546 872 687 1049 317 566 62 Core 48 | 5 . . . 3 . . . . . . . . . 17 23 Treads 1827 | 83 191 1536 16 . . . . . . . . . . . 1 Legs . | . . . . . . . . . . . . . . . . Wheels 2850 | . . 10 737 1820 283 . . . . . . . . . . Hover 5961 | . . . . . 902 390 404 245 546 872 687 1049 317 549 . Flight 38 | . . . . . . . . . . . . . . . 38 Fastest Speed 35 | 50 160 140 130 100 41 42 42 42 44 35 35 38 38 35 35 Average Speed 94 | 153 160 193 178 124 77 55 42 43 49 35 36 38 38 47 43 Slowest Speed 950 | 160 160 340 560 950 190 102 42 102 96 96 92 90 38 100 225 Overloaded Moves . | . . . . . . . . . . . . . . . . Propulsion Burnouts . | . . . . . . . . . . . . . . . . Robots Hopped . | . . . . . . . . . . . . . . . . Potential Cave-ins . | . . . . . . . . . . . . . . . . Cave-ins Triggered . | . . . . . . . . . . . . . . . . Teleports 1 | . . . . . . . . . . . . . . 1 . Exploration Rate (%) 51 | 6 33 75 98 88 30 56 50 62 60 25 76 81 59 17 6 Regions Visited 15 Branch Regions 11 Pre-discovered Areas 8 | . . . . 2 . . . 3 . 1 2 . . . . Known Exits Taken 9 | . . . . . 1 1 1 1 1 1 1 1 1 . . Unknown Exits Taken 6 | 1 1 1 1 1 . . . . . . . . . 1 . Scrap Searched 20 | . . 6 . 5 . 3 1 . 1 . 2 . 2 . . Spaces Dug 104 | . . 4 . . 18 7 25 . 6 25 5 . 6 8 . Terrain Destroyed 178 | . . 45 . . 18 7 25 . 6 25 5 . 6 41 . Melee 68 | . . . . . 18 1 5 . 3 24 5 . 4 8 . Projectile 9 | . . 6 . . . . . . . 1 . . 2 . . AOE 101 | . . 39 . . . 6 20 . 3 . . . . 33 . Terrain Rammed . | . . . . . . . . . . . . . . . . Walls Destroyed . | . . . . . . . . . . . . . . . . Machines Disabled . | . . . . . . . . . . . . . . . . Actions | -11 -10 -10 -7 -7 -5 -5 -5 -5 -4 -4 -4 -4 -3 -3 -3 --------- Run | Yrd Mat Sub Rec Scr Fac Upp Upp Zhi Pro Fac Upp War Pro Res Arm Total 12814 | 121 231 1680 902 1883 1438 480 538 277 1026 1023 794 1274 380 694 73 Wait 1255 | 7 16 14 92 3 43 63 119 . 465 83 94 175 55 26 . Move 10709 | 87 190 1545 752 1822 1184 389 403 244 545 871 686 1048 316 565 62 Hop . | . . . . . . . . . . . . . . . . Pick Up 149 | 8 6 16 23 25 26 8 . 8 . 10 2 7 . 9 1 Fast Attach 80 | 7 1 7 1 8 18 . 2 5 . 7 1 10 . 11 2 Attach 53 | . . 6 . 1 18 . . 1 . 5 1 5 1 11 4 Detach 28 | . . 1 . 4 9 1 . . . 1 . 4 1 7 . Swap 57 | . 1 12 . 1 11 2 2 . 5 8 2 3 . 10 . Drop 132 | . 3 20 10 19 27 3 2 11 . 10 2 15 . 9 1 Fire 128 | 12 14 58 . . 13 10 1 . 2 1 . 5 1 11 . Melee 198 | . . 1 24 . 89 4 9 8 9 27 6 2 6 10 3 Ram 25 | . . . . . . . . . . . . . . 25 . Kick . | . . . . . . . . . . . . . . . . Crush . | . . . . . . . . . . . . . . . . Escape Stasis . | . . . . . . . . . . . . . . . . Rewire . | . . . . . . . . . . . . . . . . Trap . | . . . . . . . . . . . . . . . . Miscellaneous . | . . . . . . . . . . . . . . . . Route ------- -11/Scrapyard -10/Materials -10/Subcaves (discovered 3 exits: [*Mat x2] / *Rec) -7/Recycling (discovered 2 exits: *Fac / *Scr) -7/Scraptown (discovered 2 exits: *Fac x2) -5/Factory (discovered 2 exits: *Upp x2) -5/Upper Caves -5/Upper Caves -5/Zhirov -4/Proximity Caves -4/Factory (discovered 2 exits: *Upp x2) -4/Upper Caves -4/Warlord -3/Proximity Caves -3/Research -3/Armory History --------- Turn | Location | Event 9 | -11/Scrapyard | Discovered new exit (range 15) 194 | -11/Scrapyard | Entered Materials 310 | -10/Materials | Build established: Mutant 524 | -10/Materials | Discovered new exit (range 10) 564 | -10/Materials | Entered Subcaves 572 | -10/Subcaves | Learned location of 1 exit from Materials 635 | -10/Subcaves | Visited Clippyterm 722 | -10/Subcaves | Shifting Twisted Machinery released Sub. Laser 749 | -10/Subcaves | Shifting Twisted Machinery released Battle Cannon 863 | -10/Subcaves | Ambushed by Subdwellers from Twisted Machinery 1059 | -10/Subcaves | Learned 4 Materials zone layouts 2012 | -10/Subcaves | Shifting Twisted Machinery released Mak. Light Armor Plating 2034 | -10/Subcaves | Shifting Twisted Machinery released Mak. Light Armor Plating 2511 | -10/Subcaves | Discovered new exit (range 12) 2704 | -10/Subcaves | Discovered new exit (range 14) 2888 | -10/Subcaves | Discovered new exit (range 15) 3078 | -10/Subcaves | Visited 4L-MR0's lab 3094 | -10/Subcaves | Found Tower Shield 3286 | -10/Subcaves | Attached Tower Shield, gained temporary slots: Power, Propulsion x2, Utility x2, Weapon x2 3380 | -10/Subcaves | Found SUBCON Basin 3614 | -10/Subcaves | Build established: Tank 3802 | -10/Subcaves | Entered Recycling 4032 | -7/Recycling | Build established: Scavenger-Tank 4095 | -7/Recycling | Discovered new exit (range 15) 4554 | -7/Recycling | Scanned before Scraplab entrance 4578 | -7/Recycling | Entered Scraplab 5313 | -7/Recycling | Discovered new exit (range 2) 5315 | -7/Recycling | Entered Scraptown 5641 | -7/Scraptown | Visited The Evicted 5649 | -7/Scraptown | Visited Assassins FH 5689 | -7/Scraptown | Build established: Mutant 5713 | -7/Scraptown | Scanned Subdweller tech in exchange for log data 5717 | -7/Scraptown | Learned Research emergency access door positions 5807 | -7/Scraptown | Discovered new exit (range 13) 5971 | -7/Scraptown | Learned location of Extension (-6) 6128 | -7/Scraptown | Visited UFD Registry 6128 | -7/Scraptown | Registered with UFD as "Gammawarp" 6147 | -7/Scraptown | Visited SPCMW 6207 | -7/Scraptown | Visited Spacefarers 6240 | -7/Scraptown | Visited IN-MT5's Study 6266 | -7/Scraptown | Visited CR-KLE's Repair Center 6471 | -7/Scraptown | Visited LU-1G1's Boring Crew 6508 | -7/Scraptown | Visited Science Guys 6665 | -7/Scraptown | Visited Derelict Rescue Squad 6674 | -7/Scraptown | Found DRS Beacon 6696 | -7/Scraptown | Visited Research Penetration Think Tank 6722 | -7/Scraptown | Visited Scrap Suit Storage 6727 | -7/Scraptown | Found Scrap Suit 6733 | -7/Scraptown | Found Scrap Suit 6753 | -7/Scraptown | Visited Curators Association 6777 | -7/Scraptown | Visited Chapter 10 6814 | -7/Scraptown | Visited DA-N13 Charitable Foundation 6821 | -7/Scraptown | Found DCF Scrap (29 items) 6849 | -7/Scraptown | Visited A0-MCA Data Center 6856 | -7/Scraptown | Given a C rating by A0-MCA 6866 | -7/Scraptown | Found A0-MCA's Component Scanner 7223 | -7/Scraptown | CR-KLE repaired 6 parts 7395 | -7/Scraptown | Build established: Derelict-Mutant 7488 | -7/Scraptown | Discovered new exit (range 5) 7568 | -7/Scraptown | Met Optimus 7568 | -7/Scraptown | Accepted into 0bPrime 7641 | -7/Scraptown | Entered Factory 7641 | -5/Factory | Evolved 10 slots: Power x1, Propulsion x4, Utility x5 7907 | -5/Factory | Tech Extrapolator generated special schematic: Deep Structural Scanner 8286 | -5/Factory | Build established: Hacker-Mutant 8328 | -5/Factory | Identified exit to Upper Caves 8386 | -5/Factory | Lost 4 parts (2n2u) 8413 | -5/Factory | System corruption reached 10% 8756 | -5/Factory | Repaired Broken Gravmag Array? 8758 | -5/Factory | Build established: Mutant 8895 | -5/Factory | Loaded intel: 8 recycling unit locations 8919 | -5/Factory | Entered Upper Caves 8946 | -5/Upper Caves | Tech Extrapolator generated special schematic: Machine Rigger 9107 | -5/Upper Caves | Found Alien Artifact 9124 | -5/Upper Caves | Encountered a Warlord checkpoint 9147 | -5/Upper Caves | Attracted the attention of an 0b10 checkpoint 9194 | -5/Upper Caves | Identified exit to Upper Caves 9241 | -5/Upper Caves | Entered another Upper Caves area 9243 | -5/Upper Caves | Found DCF Scrap (13 items) 9549 | -5/Upper Caves | Discovered new exit (range 5) 9550 | -5/Upper Caves | Identified exit to Zhirov 9557 | -5/Upper Caves | Entered Zhirov 9557 | -5/Zhirov | Discovered new exit (range 3) 9588 | -5/Zhirov | Learned location of Quarantine (-2) 9588 | -5/Zhirov | Learned location of Testing (-3) 9588 | -5/Zhirov | Learned location of Command (-1) 9603 | -5/Zhirov | Found Alien Artifact 9603 | -5/Zhirov | Identified Integrated Dissipator 9603 | -5/Zhirov | Installed Integrated Dissipator, increased core heat dissipation (+20) 9634 | -5/Zhirov | Found Alien Artifact 9700 | -5/Zhirov | Identified exit to Proximity Caves 9701 | -5/Zhirov | Entered Proximity Caves 9705 | -4/Proximity Caves | Build established: Derelict-Mutant 10007 | -4/Proximity Caves | Learned 4 Research zone layouts 10462 | -4/Proximity Caves | Discovered new exit (range 7) 10466 | -4/Proximity Caves | Identified exit to Factory 10466 | -4/Proximity Caves | Entered Factory 10466 | -4/Factory | Evolved 2 slots: Utility x2 10519 | -4/Factory | Loaded intel: 8 recycling unit locations 10519 | -4/Factory | Learned location of Protoforge (-2) 10520 | -4/Factory | Repaired Gravmag Array? 10792 | -4/Factory | Fabricated Mak. System Shield (x1) 10855 | -4/Factory | Identified Dimensional Node Initializer 10872 | -4/Factory | Identified exit to Upper Caves 10927 | -4/Factory | Tech Extrapolator generated special schematic: Wartreads 10961 | -4/Factory | Entered Upper Caves 11013 | -4/Upper Caves | Encountered a Warlord checkpoint 11086 | -4/Upper Caves | Tech Extrapolator generated special schematic: Energy Deflector 11128 | -4/Upper Caves | Attracted the attention of an 0b10 outpost 11155 | -4/Upper Caves | Attracted the attention of an 0b10 checkpoint 11326 | -4/Upper Caves | A Derelict revealed a hidden shortcut to "reach the base" 11327 | -4/Upper Caves | Identified exit to Warlord 11327 | -4/Upper Caves | Entered Warlord 11342 | -4/Warlord | Discovered new exit (range 9) 11352 | -4/Warlord | System corruption cleaned by Quarantine Array 11445 | -4/Warlord | Build established: Hacker-Mutant 11473 | -4/Warlord | Received a Watcher feed algorithm from an ecstatic Tinkerer 11473 | -4/Warlord | Ran a Watcher feed algorithm 11481 | -4/Warlord | Visited the Vortex Lab 11487 | -4/Warlord | Found Prototype Energy Gun 11487 | -4/Warlord | Identified Vortex Rail 11490 | -4/Warlord | Found Vortex Rail 11503 | -4/Warlord | Warlord's base attacked by MAIN.C 11509 | -4/Warlord | Rebuked by Warlord 11545 | -4/Warlord | Found Prototype Device 11545 | -4/Warlord | Identified System Purifier 11550 | -4/Warlord | Found Prototype Hackware 11550 | -4/Warlord | Identified System Mapper 11553 | -4/Warlord | Found Prototype Device 11553 | -4/Warlord | Identified Exp. Cloaking Device 11559 | -4/Warlord | Found Prototype Reactor 11559 | -4/Warlord | Identified Vortex Chain Reactor 11613 | -4/Warlord | Opened side exit 11738 | -4/Warlord | Spotted B-90 Cyclops 11853 | -4/Warlord | Warlord forces counterattacked 11889 | -4/Warlord | P-70 Sage assimilated allied 11-QI4(g) 11897 | -4/Warlord | P-80 Master assimilated allied ZR-EST(Y) 11925 | -4/Warlord | Spotted Executioner 11942 | -4/Warlord | Attacked by Warlord forces 11943 | -4/Warlord | Spotted U0-9FI(g) 11947 | -4/Warlord | Spotted Executioner 11957 | -4/Warlord | Spotted Striker 11964 | -4/Warlord | Identified exit to Proximity Caves 11964 | -4/Warlord | Entered Proximity Caves 11971 | -3/Proximity Caves | Lost 18 allies 11991 | -3/Proximity Caves | Spotter reported a threat 11991 | -3/Proximity Caves | Spotter reported a threat 12097 | -3/Proximity Caves | Spotter reported a threat 12151 | -3/Proximity Caves | Discovered new exit (range 13) 12155 | -3/Proximity Caves | Identified exit to Research 12155 | -3/Proximity Caves | Entered Research 12155 | -3/Research | Evolved 2 slots: Propulsion x1, Weapon x1 12224 | -3/Research | Loaded intel: 5 recycling unit locations 12376 | -3/Research | Found Quantum Capacitor 12405 | -3/Research | Search patrols dispatched 12456 | -3/Research | Repaired Cld. Gravmag System 12505 | -3/Research | System corruption reached 10% 12535 | -3/Research | Core integrity fell below 50% 12551 | -3/Research | Identified Transdimensional Reconstructor 12551 | -3/Research | Warped through subspace 12567 | -3/Research | Discovered new exit (range 15) 12573 | -3/Research | System corruption reached 30% 12575 | -3/Research | Core integrity fell below 20% 12578 | -3/Research | Entered Armory 12606 | -3/Armory | Lost 17 parts (2p8n4u3w) 12622 | -3/Armory | Destroyed by X-87 Electro with Compact HERF Cannon Last Messages --------------- destroyed. 12575_ Penetrated by Slug. 12575_ Slug penetrates G-73 Enforcer. LOCATION=UNKNOWN GOAL=ESCAPE 12589_ Connecting with Terminal... 12589_ Current location identified: Armory >>Alert(Check) Current Alert Level: Low Security 12589_ Imp. Hacking Suite blown off. 12589_ System Mapper blown off. 12589_ A0-MCA's Component Scanner blown off. 12589_ E-15 Imp destroyed. 12590_ Acquired Cesium-ion Thruster. 12595_ System corrupted: Matter fused (-8). 12597_ Dropped Particle Accelerator. 12599_ Acquired Enh. Force Lance. 12606_ Acquired Adv. Medium Treads. 12619_ Mic. Antimatter Reactor destroyed. 12621_ Lrn. Proton Cannon destroyed. Map ----- +----------------------------------------------------+ | ?????????????????????????????????????????????????? | | ?????????????????????????????????????????????????? | | ?????????????????????????????????????????????????? | | ?????????????????????????????????????????????????? | | ?????????????????????????????????????????????????? | | ?????????????????????????????????????????????????? | | ?????????????????????????????????????????????????? | | ?????????????????????????????????????????????????? | | ?????????????????????????????????????????????????? | | ????????????????????????##############???????????? | | ????????????????????????# #???????????? | | ????????????????????????# /// #???????????? | | ????????????????????????# /// #???????????? | | ????????????????????????# / / #???????????? | | ????????????????????????# #???????????? | | ????????????????????????# #???????????? | | ????????????????????????# ! #???????????? | | ????????????????????????# #???????????? | | ????????????????????????# #???????????? | | ????????????????????????# #???????????? | | ????????????????????????# #???????????? | | ????????????????????????# #???????????? | | ?????????????????#] =##########+######???????????? | | ?????????? #?######?????????? | | ?????????????????# ###x##### #?! #?????????? | | ??????????????????????# @ # # #?????????? | | ??????????????????????# # # """ #?????????? | | ??????????????????????#""" x / """ #?????????? | | ??????????????????????#""" # # """ #?????????? | | ??????????????????????#""" # # #?????????? | | ??????????????????????# # #?######?????????? | | ??????????????????????######## #????????????????? | | ????????????????????????????##% ##???????????????? | | ????????????????????????????# / ################# | | ????????????????????????????# T" | | ????????????????????????????# " | | ????????????????????????????# ####/############ | | ????????????????????????????##+###? ?????????? | | ?????????????????????????????????# ???????? | | ?????????????????????????????????# ?????? | | ?????????????????????????????????# ???? | | ?????????????????????????????????# #??? | | ?????????????????????????????????# #??? | | ?????????????????????????????????# #??? | | ?????????????????????????????????# #??? | | ?????????????????????????????????# #??? | | ?????????????????????????????????# #??? | | ?????????????????????????????????# #??? | | ?????????????????????????????????# #??? | | ?????????????????????????????????############????? | +----------------------------------------------------+ Best States ------------- Heat Dissipation 66 Coolant Potential 50 Energy Generation 55 Energy Capacity 700 Matter Stores 300 Matter Capacity 300 Sight Range 16 Robot Scan Range 18 Terrain Scan Range 16 Terrain Scan Density 10 ECM Strength 2 Cloak Strength 4 Power Amplification 20 Armor Coverage 2100 Propulsion Shielding 90 Evasion (%) 69 Melee Accuracy 5 Recoil Reduction 2 Particle Charging 30 Offensive Hacking 46 Defensive Hacking 12 Authchip Count 3 Trap Extractor Capacity 4 Item Schematics ----------------- Hcp. Storage Unit | -10/Materials | Hacked Huge Storage Unit | -10/Materials | Hacked Lrg. Storage Unit | -10/Materials | Hacked Deep Structural Scanner | -5/Factory | Extrapolated Mak. System Shield | -5/Factory | Extrapolated Beamcaster | -5/Factory | Extrapolated Mak. Terrain Scanner | -5/Factory | Extrapolated Multitool | -5/Factory | Extrapolated Spk. Medium Treads | -5/Factory | Extrapolated Mak. Power Source | -5/Factory | Extrapolated 0b10 Decoder Chip [Generic] | -5/Factory | Extrapolated 0b10 Decoder Chip [Scout] | -5/Factory | Extrapolated 0b10 Decoder Chip [Skirmisher] | -5/Factory | Extrapolated Mak. Kinetic Plating | -5/Factory | Extrapolated Mak. Hacking Suite | -5/Factory | Extrapolated Machine Rigger | -5/Upper Caves | Extrapolated Mapping Drone Bay | -5/Upper Caves | Extrapolated Assault Drone Bay | -5/Zhirov | Free Exp. Heat Sink | -5/Zhirov | Free Exp. Optical Array | -5/Zhirov | Free Imp. Arc Thrower | -5/Zhirov | Free Spk. Heavy Treads | -5/Zhirov | Extrapolated Mak. Coolant Network | -5/Zhirov | Extrapolated Mak. System Restoration Module | -4/Proximity Caves | Extrapolated Mak. Targeting Computer | -4/Factory | Extrapolated Mak. Transmission Jammer | -4/Factory | Extrapolated Gravmag Array | -4/Factory | Scanalyzed Wartreads | -4/Factory | Extrapolated Mak. Thermal Plating | -4/Upper Caves | Extrapolated Energy Deflector | -4/Upper Caves | Extrapolated Mak. Heavy Armor Plating | -4/Upper Caves | Extrapolated Bore Cannon | -4/Upper Caves | Extrapolated Multireflex Exoskeleton | -4/Warlord | Extrapolated Mak. Salvage Targeting Computer | -4/Warlord | Extrapolated Mak. Medium Armor Plating | -4/Warlord | Extrapolated Mak. Ablative Armor | -4/Warlord | Extrapolated Mak. Laser | -4/Warlord | Extrapolated Hvy. Beamcaster | -4/Warlord | Extrapolated Robot Schematics ------------------ None Fabricated ------------ Mak. System Shield | x1 | -4/Factory | Authchip Repaired ---------- Gravmag Array | 40% | -5/Factory | Broken Gravmag Array | 65% | -4/Factory Cld. Gravmag System | 29% | -3/Research Alien Tech Used ----------------- Integrated Dissipator Transdimensional Reconstructor Achievements -------------- None Challenges ------------ None Game ------ Seed IonicMasterSlayer Manual? 0 Play Time 03:25:51 Cumulative 154.0 hours Start 2025.05.09 @ 13:24:51 End 2025.05.09 @ 18:48:41 Sessions 1 Manual Loads 0 Difficulty Rogue Special Mode None Game No. 87 Rogue 79 Adventurer 8 Explorer 0 Win Type - Total 2 Types 2/0/0/0/0/0/0/0/0/0 Lore% 67 Gallery% 64 Achievement% 55 Wizard Run 0 Options --------- Layout 2 ASCII 0 Keyboard 1 Movement Numpad Keybinds 1 Fullscreen 1 Font 48/Smallcaps Map View 50x44 Zoom Use 0% Tactical HUD 1 Map Filters NONE Filters NONE Steam 1 RUN: b2415dd3-2f50-48de-948b-a50563a15ca7